[Event "*** Titled Tuesday 3|2 Blitz"]
[Site "Chess.com"]
[Date "2016.05.03"]
[Round "5"]
[White "GM_Levan_Pantsulaia"]
[Black "maciek_92"]
[Result "1-0"]
[WhiteElo "2527"]
[BlackElo "2573"]
[TimeControl "180+2"]
[EndTime "12:02:47 PDT"]
[Termination "GM_Levan_Pantsulaia won by resignation"]

1. Nf3 {[%clk 0:02:01.3]} 1... Nf6 {[%clk 0:02:59.2]} 2. g3 {[%clk 0:02:02.3]}
2... c5 {[%clk 0:02:50.4]} 3. Bg2 {[%clk 0:02:01.9]} 3... Nc6 {[%clk 0:02:52]}
4. c4 {[%clk 0:02:01.2]} 4... g6 {[%clk 0:02:52]} 5. d4 {[%clk 0:01:59.8]} 5...
cxd4 {[%clk 0:02:52.2]} 6. Nxd4 {[%clk 0:02:01.3]} 6... Bg7 {[%clk 0:02:53.8]}
7. Nc3 {[%clk 0:02:02.2]} 7... O-O {[%clk 0:02:54.1]} 8. O-O {[%clk 0:02:03.3]}
8... Qa5 {[%clk 0:02:52.4]} 9. Nb3 {[%clk 0:01:58.2]} 9... Qh5 {[%clk
0:02:51.2]} 10. e4 {[%clk 0:01:56.2]} 10... Qxd1 {[%clk 0:02:45.7]} 11. Rxd1
{[%clk 0:01:57]} 11... d6 {[%clk 0:02:45.9]} 12. c5 {[%clk 0:01:56.4]} 12...
dxc5 {[%clk 0:02:02.5]} 13. Nxc5 {[%clk 0:01:56.6]} 13... Ne5 {[%clk 0:02:02]}
14. h3 {[%clk 0:01:53.2]} 14... b6 {[%clk 0:02:02.2]} 15. Nb3 {[%clk 0:01:27.8]}
15... Rb8 {[%clk 0:01:25.4]} 16. f4 {[%clk 0:01:23]} 16... Nc4 {[%clk
0:01:25.7]} 17. e5 {[%clk 0:01:24]} 17... Nd7 {[%clk 0:01:27.2]} 18. Nd5 {[%clk
0:01:21.9]} 18... Re8 {[%clk 0:01:20.2]} 19. Nd4 {[%clk 0:01:07.4]} 19... Bb7
{[%clk 0:01:13.4]} 20. Nb5 {[%clk 0:01:03.5]} 20... Bf8 {[%clk 0:00:55.1]} 21.
b3 {[%clk 0:00:58.8]} 21... Na5 {[%clk 0:00:51.5]} 22. Nxa7 {[%clk 0:00:59.3]}
22... e6 {[%clk 0:00:51.1]} 23. Nc7 {[%clk 0:00:57.1]} 23... Red8 {[%clk
0:00:50.8]} 24. Be3 {[%clk 0:00:53]} 24... Nc5 {[%clk 0:00:47.4]} 25. Nab5
{[%clk 0:00:46]} 25... Bxg2 {[%clk 0:00:43.7]} 26. Kxg2 {[%clk 0:00:45.9]} 26...
Nc6 {[%clk 0:00:44.7]} 27. Rac1 {[%clk 0:00:34.4]} 27... Nb4 {[%clk 0:00:45]}
28. a3 {[%clk 0:00:21.3]} 28... Nc2 {[%clk 0:00:40.6]} 29. Bf2 {[%clk
0:00:15.9]} 29... Rxd1 {[%clk 0:00:35.8]} 30. Rxd1 {[%clk 0:00:17]} 30... Nxb3
{[%clk 0:00:37.5]} 31. Nd6 {[%clk 0:00:16.1]} 31... Nc5 {[%clk 0:00:32.3]} 32.
Ncb5 {[%clk 0:00:14.1]} 32... Bxd6 {[%clk 0:00:30]} 33. exd6 {[%clk 0:00:14.6]}
33... Nd7 {[%clk 0:00:29.9]} 34. Rc1 {[%clk 0:00:15]} 34... Rc8 {[%clk
0:00:26.8]} 35. Nd4 {[%clk 0:00:16]} 35... Rc3 {[%clk 0:00:19.4]} 36. Rxc2
{[%clk 0:00:16.3]} 36... Rxa3 {[%clk 0:00:20.7]} 37. Rc8+ {[%clk 0:00:16.9]}
37... Kg7 {[%clk 0:00:22.2]} 38. Rc7 {[%clk 0:00:18.1]} 38... Nf6 {[%clk
0:00:17.6]} 39. Nxe6+ {[%clk 0:00:15.4]} 39... Kh6 {[%clk 0:00:17.7]} 40. Rxf7
{[%clk 0:00:12.9]} 40... Ne4 {[%clk 0:00:18]} 41. Nf8 {[%clk 0:00:10.3]} 41...
Ng5 {[%clk 0:00:12.5]} 42. fxg5+ {[%clk 0:00:09.8]} 42... Kxg5 {[%clk
0:00:14.4]} 43. d7 {[%clk 0:00:11.1]} 43... Rd3 {[%clk 0:00:15.2]} 44. d8=Q+
{[%clk 0:00:11.3]} 1-0

[Event "*** Titled Tuesday 3|2 Blitz"]
[Site "Chess.com"]
[Date "2016.05.03"]
[Round "5"]
[White "pedromartinez91"]
[Black "GulamaliRises"]
[Result "0-1"]
[WhiteElo "2346"]
[BlackElo "2581"]
[TimeControl "180+2"]
[EndTime "12:03:07 PDT"]
[Termination "GulamaliRises won by resignation"]

1. e4 {[%clk 0:03:01.9]} 1... d6 {[%clk 0:03:00.4]} 2. d4 {[%clk 0:03:02.3]}
2... Nf6 {[%clk 0:03:02]} 3. Nc3 {[%clk 0:03:03.1]} 3... g6 {[%clk 0:03:03.6]}
4. Nf3 {[%clk 0:03:01.9]} 4... Bg7 {[%clk 0:03:04.8]} 5. h3 {[%clk 0:03:02.8]}
5... O-O {[%clk 0:03:05.8]} 6. Be2 {[%clk 0:03:03.2]} 6... a6 {[%clk 0:03:07.3]}
7. a4 {[%clk 0:02:54.8]} 7... b6 {[%clk 0:03:08.3]} 8. O-O {[%clk 0:02:51.9]}
8... Bb7 {[%clk 0:03:09.6]} 9. Qd3 {[%clk 0:02:49.5]} 9... Nc6 {[%clk
0:03:09.2]} 10. d5 {[%clk 0:02:44.7]} 10... Nb4 {[%clk 0:03:10.1]} 11. Qd1
{[%clk 0:02:34.8]} 11... c6 {[%clk 0:03:10.7]} 12. dxc6 {[%clk 0:02:25.8]} 12...
Bxc6 {[%clk 0:03:12.6]} 13. Bd3 {[%clk 0:02:13.8]} 13... e5 {[%clk 0:03:03.7]}
14. Bg5 {[%clk 0:02:08.2]} 14... h6 {[%clk 0:03:04.4]} 15. Bxf6 {[%clk
0:02:08.8]} 15... Qxf6 {[%clk 0:02:58.8]} 16. Bc4 {[%clk 0:02:05.6]} 16... Rac8
{[%clk 0:02:50]} 17. Qe2 {[%clk 0:02:05.6]} 17... Bb7 {[%clk 0:02:50.6]} 18.
Rad1 {[%clk 0:01:57.5]} 18... Rc5 {[%clk 0:02:35.1]} 19. Nd5 {[%clk 0:01:20.5]}
19... Nxd5 {[%clk 0:02:31.4]} 20. Bxd5 {[%clk 0:01:20.8]} 20... Bxd5 {[%clk
0:01:48.9]} 21. Rxd5 {[%clk 0:01:20.5]} 21... Rxd5 {[%clk 0:01:49.9]} 22. exd5
{[%clk 0:01:19.6]} 22... Ra8 {[%clk 0:01:51.8]} 23. c3 {[%clk 0:01:18.5]} 23...
Qd8 {[%clk 0:01:51.8]} 24. Nd2 {[%clk 0:01:04.2]} 24... f5 {[%clk 0:01:49.7]}
25. Qc4 {[%clk 0:00:42.8]} 25... Qc8 {[%clk 0:01:44.3]} 26. Ra1 {[%clk
0:00:32.4]} 26... Qb7 {[%clk 0:01:43]} 27. Qb3 {[%clk 0:00:29.5]} 27... Rc8
{[%clk 0:01:42.3]} 28. Rd1 {[%clk 0:00:19.2]} 28... b5 {[%clk 0:01:35.8]} 29. c4
{[%clk 0:00:19.8]} 29... b4 {[%clk 0:01:36.9]} 30. Qe3 {[%clk 0:00:19]} 30... e4
{[%clk 0:01:34.5]} 31. b3 {[%clk 0:00:19.7]} 31... Qc7 {[%clk 0:01:26.9]} 32.
Nf1 {[%clk 0:00:20.2]} 32... Qc5 {[%clk 0:01:24.3]} 33. Qxc5 {[%clk 0:00:19.3]}
33... dxc5 {[%clk 0:01:26.2]} 34. g3 {[%clk 0:00:18.8]} 34... Bd4 {[%clk
0:01:25.8]} 35. Ne3 {[%clk 0:00:19.7]} 35... Kg7 {[%clk 0:01:25.7]} 36. Kg2
{[%clk 0:00:20.9]} 36... Kf6 {[%clk 0:01:27.2]} 37. h4 {[%clk 0:00:21.3]} 37...
Re8 {[%clk 0:01:27.8]} 38. Nc2 {[%clk 0:00:22.2]} 38... Bc3 {[%clk 0:01:26.2]}
39. f4 {[%clk 0:00:22.5]} 39... exf3+ {[%clk 0:01:23.3]} 40. Kxf3 {[%clk
0:00:23.2]} 40... g5 {[%clk 0:01:25.2]} 41. hxg5+ {[%clk 0:00:23.3]} 41... hxg5
{[%clk 0:01:27.1]} 42. g4 {[%clk 0:00:24.4]} 42... fxg4+ {[%clk 0:01:25.6]} 43.
Kxg4 {[%clk 0:00:24.9]} 43... Re2 {[%clk 0:01:26.7]} 44. Rf1+ {[%clk 0:00:23.5]}
44... Ke5 {[%clk 0:01:26.3]} 45. Rc1 {[%clk 0:00:20.5]} 45... Bd2 {[%clk
0:01:22.2]} 46. Rd1 {[%clk 0:00:20.6]} 46... Kd6 {[%clk 0:01:16.8]} 47. Kf3
{[%clk 0:00:20.3]} 47... Rh2 {[%clk 0:01:17.9]} 48. Kg3 {[%clk 0:00:15.3]} 48...
Bf4+ {[%clk 0:01:18.9]} 49. Kg4 {[%clk 0:00:16.4]} 49... Rxc2 {[%clk 0:01:20.1]}
50. Kf5 {[%clk 0:00:17.2]} 50... Rc3 {[%clk 0:01:16.5]} 51. Rh1 {[%clk
0:00:17.8]} 51... Rxb3 {[%clk 0:01:17.5]} 52. Rh6+ {[%clk 0:00:19.2]} 52... Kd7
{[%clk 0:01:19]} 53. Rh7+ {[%clk 0:00:20.2]} 53... Ke8 {[%clk 0:01:20.5]} 54.
Kf6 {[%clk 0:00:16.7]} 54... Re3 {[%clk 0:01:11.1]} 55. Rh8+ {[%clk 0:00:17.9]}
55... Kd7 {[%clk 0:01:12.2]} 56. Rh7+ {[%clk 0:00:19.1]} 56... Kd6 {[%clk
0:01:13.5]} 57. Ra7 {[%clk 0:00:19.3]} 57... g4 {[%clk 0:01:06.2]} 58. Rxa6+
{[%clk 0:00:19.1]} 58... Kd7 {[%clk 0:01:07.6]} 59. Kf5 {[%clk 0:00:20.2]} 59...
Bc7 {[%clk 0:01:04]} 60. Rc6 {[%clk 0:00:19.2]} 60... g3 {[%clk 0:01:02.6]} 61.
Rg6 {[%clk 0:00:18.6]} 61... b3 {[%clk 0:01:03.2]} 0-1

[Event "*** Titled Tuesday 3|2 Blitz"]
[Site "Chess.com"]
[Date "2016.05.03"]
[Round "5"]
[White "tac49"]
[Black "flavettes"]
[Result "1-0"]
[WhiteElo "2572"]
[BlackElo "2374"]
[TimeControl "180+2"]
[EndTime "12:03:07 PDT"]
[Termination "tac49 won by resignation"]

1. e4 {[%clk 0:03:01.9]} 1... c5 {[%clk 0:03:00.7]} 2. Nf3 {[%clk 0:03:02.6]}
2... Nc6 {[%clk 0:03:02.2]} 3. Nc3 {[%clk 0:02:58.9]} 3... g6 {[%clk 0:03:03.1]}
4. d4 {[%clk 0:02:59.6]} 4... cxd4 {[%clk 0:03:03]} 5. Nxd4 {[%clk 0:03:01.5]}
5... Bg7 {[%clk 0:03:04.5]} 6. Be3 {[%clk 0:03:03]} 6... Nf6 {[%clk 0:03:05.1]}
7. Bc4 {[%clk 0:03:04.5]} 7... Qa5 {[%clk 0:03:06]} 8. O-O {[%clk 0:03:04.2]}
8... O-O {[%clk 0:03:07.3]} 9. Bb3 {[%clk 0:03:05.6]} 9... d6 {[%clk 0:03:08.6]}
10. Nd5 {[%clk 0:03:06.6]} 10... Re8 {[%clk 0:02:54.9]} 11. Nxf6+ {[%clk
0:03:04.7]} 11... Bxf6 {[%clk 0:02:55.1]} 12. c3 {[%clk 0:03:06.2]} 12... Bd7
{[%clk 0:02:54.6]} 13. f4 {[%clk 0:03:07.2]} 13... Rac8 {[%clk 0:02:46.8]} 14.
Nf3 {[%clk 0:03:03.1]} 14... Qc7 {[%clk 0:02:36.3]} 15. Kh1 {[%clk 0:02:46.6]}
15... Na5 {[%clk 0:02:34.9]} 16. e5 {[%clk 0:02:46.5]} 16... Nxb3 {[%clk
0:02:23.7]} 17. axb3 {[%clk 0:02:37.2]} 17... dxe5 {[%clk 0:02:12]} 18. fxe5
{[%clk 0:02:37.5]} 18... Bxe5 {[%clk 0:02:09.2]} 19. Nxe5 {[%clk 0:01:40]} 19...
Qxe5 {[%clk 0:02:08.7]} 20. Qxd7 {[%clk 0:01:26.4]} 20... Qxe3 {[%clk
0:02:07.6]} 21. Qxb7 {[%clk 0:01:27.7]} 21... Rb8 {[%clk 0:01:17.6]} 22. Qd5
{[%clk 0:01:25.7]} 22... e6 {[%clk 0:01:04]} 23. Qd7 {[%clk 0:01:21.7]} 23...
Rf8 {[%clk 0:01:04.7]} 24. b4 {[%clk 0:01:11.5]} 24... Qe2 {[%clk 0:01:04.6]}
25. Qxa7 {[%clk 0:01:02.3]} 25... Qxb2 {[%clk 0:00:58.9]} 26. Qe3 {[%clk
0:00:36.6]} 26... Rb7 {[%clk 0:00:46.2]} 27. Rab1 {[%clk 0:00:35.8]} 27... Qa2
{[%clk 0:00:46.3]} 28. b5 {[%clk 0:00:34]} 28... Qc4 {[%clk 0:00:37]} 29. b6
{[%clk 0:00:33.8]} 29... Rd8 {[%clk 0:00:33.4]} 30. Qf3 {[%clk 0:00:27.8]} 30...
Rdb8 {[%clk 0:00:30.4]} 31. h3 {[%clk 0:00:24.6]} 31... e5 {[%clk 0:00:29.2]}
32. Rb4 {[%clk 0:00:23.6]} 32... Qe6 {[%clk 0:00:27.7]} 33. Rb5 {[%clk 0:00:05]}
33... Rxb6 {[%clk 0:00:24.8]} 34. Rxb6 {[%clk 0:00:06.4]} 34... Rxb6 {[%clk
0:00:26.7]} 35. Qa8+ {[%clk 0:00:03.9]} 35... Kg7 {[%clk 0:00:27.7]} 36. Qd8
{[%clk 0:00:05.2]} 36... Rc6 {[%clk 0:00:27.1]} 37. Rf3 {[%clk 0:00:05.7]} 37...
e4 {[%clk 0:00:25.5]} 38. Qd4+ {[%clk 0:00:06.7]} 38... Kh6 {[%clk 0:00:22.7]}
39. Re3 {[%clk 0:00:08.2]} 39... f5 {[%clk 0:00:21.6]} 40. Qd8 {[%clk
0:00:09.4]} 40... Qf6 {[%clk 0:00:18.4]} 41. Qd2 {[%clk 0:00:10.5]} 41... Qg5
{[%clk 0:00:14.6]} 42. h4 {[%clk 0:00:09.8]} 42... Qf4 {[%clk 0:00:14]} 43. g3
{[%clk 0:00:11]} 43... Rd6 {[%clk 0:00:06.2]} 44. Qc1 {[%clk 0:00:07.9]} 44...
Qe5 {[%clk 0:00:03.9]} 45. Rxe4+ {[%clk 0:00:07.6]} 1-0

[Event "*** Titled Tuesday 3|2 Blitz"]
[Site "Chess.com"]
[Date "2016.05.03"]
[Round "5"]
[White "AvitalBor"]
[Black "PowerThinking2650"]
[Result "0-1"]
[WhiteElo "2348"]
[BlackElo "2185"]
[TimeControl "180+2"]
[EndTime "12:03:36 PDT"]
[Termination "PowerThinking2650 won by resignation"]

1. e4 {[%clk 0:02:25.2]} 1... e5 {[%clk 0:02:59.8]} 2. Nf3 {[%clk 0:02:24.6]}
2... Nc6 {[%clk 0:03:00.7]} 3. Bb5 {[%clk 0:02:24]} 3... a6 {[%clk 0:03:01.9]}
4. Ba4 {[%clk 0:02:23.9]} 4... Nf6 {[%clk 0:03:02]} 5. O-O {[%clk 0:02:24.3]}
5... Be7 {[%clk 0:03:01.8]} 6. d3 {[%clk 0:02:24.6]} 6... b5 {[%clk 0:03:01.7]}
7. Bb3 {[%clk 0:02:24.4]} 7... O-O {[%clk 0:03:02.1]} 8. Nbd2 {[%clk 0:02:23.8]}
8... Re8 {[%clk 0:02:59.4]} 9. Re1 {[%clk 0:02:22.7]} 9... Bf8 {[%clk
0:02:58.6]} 10. Ng5 {[%clk 0:02:17.4]} 10... d5 {[%clk 0:02:46.1]} 11. exd5
{[%clk 0:02:17.5]} 11... Nd4 {[%clk 0:02:45.6]} 12. d6 {[%clk 0:02:15.4]} 12...
Nxb3 {[%clk 0:02:37.9]} 13. dxc7 {[%clk 0:02:16.3]} 13... Qxc7 {[%clk
0:02:35.4]} 14. axb3 {[%clk 0:02:17.6]} 14... Bb7 {[%clk 0:02:31.9]} 15. Nde4
{[%clk 0:02:16.6]} 15... Nxe4 {[%clk 0:02:26.7]} 16. Nxe4 {[%clk 0:02:18.5]}
16... f5 {[%clk 0:02:22.6]} 17. Ng3 {[%clk 0:02:17.4]} 17... g6 {[%clk
0:02:18.1]} 18. Bg5 {[%clk 0:02:11.7]} 18... Bc5 {[%clk 0:02:14.6]} 19. Be3
{[%clk 0:02:11.7]} 19... Qc6 {[%clk 0:02:10.2]} 20. Qf3 {[%clk 0:02:01.4]} 20...
Qxf3 {[%clk 0:01:35.3]} 21. gxf3 {[%clk 0:02:03.3]} 21... Bb4 {[%clk 0:01:27.1]}
22. c3 {[%clk 0:02:02.7]} 22... Bd6 {[%clk 0:01:26]} 23. Nf1 {[%clk 0:01:37.2]}
23... Bxf3 {[%clk 0:01:22.7]} 24. Nd2 {[%clk 0:01:38.6]} 24... Bc6 {[%clk
0:01:16.7]} 25. f3 {[%clk 0:01:38.8]} 25... a5 {[%clk 0:01:12.4]} 26. Re2 {[%clk
0:01:37.6]} 26... Kf7 {[%clk 0:01:07.3]} 27. Bf2 {[%clk 0:01:37.9]} 27... Bc7
{[%clk 0:01:05.8]} 28. Bg3 {[%clk 0:01:36.5]} 28... Rad8 {[%clk 0:01:03.1]} 29.
d4 {[%clk 0:01:32.5]} 29... f4 {[%clk 0:00:36.4]} 30. Bf2 {[%clk 0:01:30.5]}
30... exd4 {[%clk 0:00:34.4]} 31. Rxe8 {[%clk 0:01:31.1]} 31... Rxe8 {[%clk
0:00:35.1]} 32. Bxd4 {[%clk 0:01:26.8]} 32... Re2 {[%clk 0:00:35.6]} 33. Rd1
{[%clk 0:01:26.6]} 33... g5 {[%clk 0:00:35.3]} 34. Bf2 {[%clk 0:01:25.4]} 34...
h5 {[%clk 0:00:34.6]} 35. Kf1 {[%clk 0:01:26.5]} 35... Re6 {[%clk 0:00:33.3]}
36. Bc5 {[%clk 0:01:24.7]} 36... g4 {[%clk 0:00:33.4]} 37. Ne4 {[%clk
0:01:23.8]} 37... Bxe4 {[%clk 0:00:31.8]} 38. fxe4 {[%clk 0:01:25.7]} 38... Be5
{[%clk 0:00:21.1]} 39. Rd7+ {[%clk 0:01:25.1]} 39... Kg6 {[%clk 0:00:21.9]} 40.
Rd5 {[%clk 0:00:34.9]} 40... Bf6 {[%clk 0:00:22.3]} 41. Bd4 {[%clk 0:00:30.1]}
41... Bh4 {[%clk 0:00:21]} 42. e5 {[%clk 0:00:27.9]} 42... Kf5 {[%clk
0:00:21.4]} 43. Rxb5 {[%clk 0:00:28.3]} 43... f3 {[%clk 0:00:22.5]} 44. Rxa5
{[%clk 0:00:28.3]} 44... Bg5 {[%clk 0:00:22.8]} 45. Ra8 {[%clk 0:00:26.2]} 45...
Bf4 {[%clk 0:00:22.9]} 46. Rh8 {[%clk 0:00:25.8]} 46... Kg5 {[%clk 0:00:23.1]}
47. b4 {[%clk 0:00:21.8]} 47... h4 {[%clk 0:00:23.9]} 48. b5 {[%clk 0:00:21.9]}
48... g3 {[%clk 0:00:24.4]} 49. hxg3 {[%clk 0:00:23.2]} 49... hxg3 {[%clk
0:00:25.1]} 50. b6 {[%clk 0:00:22.4]} 50... Bxe5 {[%clk 0:00:22.1]} 51. Rg8+
{[%clk 0:00:21.3]} 51... Kf4 {[%clk 0:00:22.1]} 52. b7 {[%clk 0:00:21.1]} 52...
Bxd4 {[%clk 0:00:21.7]} 53. cxd4 {[%clk 0:00:22.6]} 53... g2+ {[%clk 0:00:22]}
54. Rxg2 {[%clk 0:00:15.4]} 54... fxg2+ {[%clk 0:00:22.8]} 55. Kxg2 {[%clk
0:00:17.3]} 55... Re2+ {[%clk 0:00:23.8]} 0-1

[Event "*** Titled Tuesday 3|2 Blitz"]
[Site "Chess.com"]
[Date "2016.05.03"]
[Round "5"]
[White "BartoszSocko"]
[Black "underdogchss"]
[Result "1-0"]
[WhiteElo "2671"]
[BlackElo "2359"]
[TimeControl "180+2"]
[EndTime "12:03:38 PDT"]
[Termination "BartoszSocko won by resignation"]

1. e4 {[%clk 0:01:38]} 1... d6 {[%clk 0:02:55.1]} 2. d4 {[%clk 0:01:38.1]} 2...
Nf6 {[%clk 0:02:56.2]} 3. Nc3 {[%clk 0:01:38.6]} 3... g6 {[%clk 0:02:57.3]} 4.
Nge2 {[%clk 0:01:39.5]} 4... Bg7 {[%clk 0:02:54]} 5. h3 {[%clk 0:01:41]} 5... c6
{[%clk 0:02:43]} 6. a4 {[%clk 0:01:40.9]} 6... a5 {[%clk 0:02:42.2]} 7. Be3
{[%clk 0:01:41.8]} 7... Nbd7 {[%clk 0:02:42.3]} 8. g4 {[%clk 0:01:41.8]} 8...
Nb6 {[%clk 0:02:38.1]} 9. Ng3 {[%clk 0:01:41.9]} 9... h5 {[%clk 0:02:37.8]} 10.
g5 {[%clk 0:01:41.2]} 10... Nfd7 {[%clk 0:02:38.6]} 11. h4 {[%clk 0:01:40.4]}
11... e6 {[%clk 0:02:35.9]} 12. Bd3 {[%clk 0:01:39.3]} 12... d5 {[%clk
0:02:32.8]} 13. e5 {[%clk 0:01:34.9]} 13... Nxe5 {[%clk 0:02:04]} 14. dxe5
{[%clk 0:01:33.3]} 14... d4 {[%clk 0:02:03.2]} 15. Bxg6 {[%clk 0:01:13]} 15...
fxg6 {[%clk 0:02:03.2]} 16. Qxd4 {[%clk 0:01:10.1]} 16... Qxd4 {[%clk
0:01:39.1]} 17. Bxd4 {[%clk 0:01:12]} 17... Nc4 {[%clk 0:01:32.4]} 18. Nce4
{[%clk 0:01:04.4]} 18... Bxe5 {[%clk 0:01:25.9]} 19. O-O-O {[%clk 0:01:03.7]}
19... Bf4+ {[%clk 0:01:20.6]} 20. Kb1 {[%clk 0:01:03.7]} 20... e5 {[%clk
0:01:22]} 21. Bc5 {[%clk 0:00:59]} 21... b6 {[%clk 0:01:12.4]} 22. Bd6 {[%clk
0:00:49.9]} 22... Bg4 {[%clk 0:01:04.6]} 23. Rd3 {[%clk 0:00:42]} 23... O-O-O
{[%clk 0:00:58.3]} 24. Rc3 {[%clk 0:00:24.4]} 24... Nxd6 {[%clk 0:00:35.6]} 25.
Rxc6+ {[%clk 0:00:24.9]} 25... Kb7 {[%clk 0:00:36.9]} 26. Rxd6 {[%clk 0:00:26]}
26... Bf3 {[%clk 0:00:30]} 27. Re1 {[%clk 0:00:18.5]} 27... Rxd6 {[%clk
0:00:16.7]} 28. Nxd6+ {[%clk 0:00:20.4]} 28... Kc6 {[%clk 0:00:17.2]} 29. Nc4
{[%clk 0:00:21.6]} 29... Re8 {[%clk 0:00:15.5]} 30. b3 {[%clk 0:00:17.7]} 30...
e4 {[%clk 0:00:16.4]} 31. Ne3 {[%clk 0:00:14.9]} 31... Rd8 {[%clk 0:00:16.6]}
32. Nc4 {[%clk 0:00:15.1]} 32... Re8 {[%clk 0:00:17.4]} 33. Kb2 {[%clk
0:00:15.5]} 33... Kc5 {[%clk 0:00:17.9]} 34. c3 {[%clk 0:00:13.3]} 34... Kc6
{[%clk 0:00:18.3]} 35. Kc2 {[%clk 0:00:14.6]} 35... Kc5 {[%clk 0:00:19.4]} 36.
Ne3 {[%clk 0:00:15.7]} 36... Rd8 {[%clk 0:00:19.5]} 37. Ne2 {[%clk 0:00:16]}
37... Be5 {[%clk 0:00:14.5]} 38. Nc4 {[%clk 0:00:13.8]} 38... Bg7 {[%clk
0:00:15.1]} 39. Nf4 {[%clk 0:00:15]} 39... Kc6 {[%clk 0:00:09.4]} 40. Ne6 {[%clk
0:00:15.8]} 40... Rd7 {[%clk 0:00:09.9]} 41. Nxg7 {[%clk 0:00:16.7]} 41... Rxg7
{[%clk 0:00:11.2]} 42. Ne5+ {[%clk 0:00:18.3]} 42... Kd5 {[%clk 0:00:11.9]} 43.
Nxf3 {[%clk 0:00:18.3]} 43... exf3 {[%clk 0:00:13.5]} 44. Kd3 {[%clk 0:00:18.3]}
44... Rc7 {[%clk 0:00:12.8]} 45. c4+ {[%clk 0:00:19.1]} 45... Kd6 {[%clk
0:00:13.2]} 46. Re3 {[%clk 0:00:19.7]} 46... Rf7 {[%clk 0:00:13.9]} 47. Kd4
{[%clk 0:00:21.2]} 47... Rf4+ {[%clk 0:00:15.1]} 48. Re4 {[%clk 0:00:22.7]}
48... Rg4 {[%clk 0:00:14.6]} 49. Rxg4 {[%clk 0:00:21.1]} 49... hxg4 {[%clk
0:00:15.6]} 50. Ke4 {[%clk 0:00:22.5]} 50... Kc5 {[%clk 0:00:14]} 51. Kf4 {[%clk
0:00:21.4]} 51... Kb4 {[%clk 0:00:15.2]} 52. h5 {[%clk 0:00:20.4]} 52... gxh5
{[%clk 0:00:13.4]} 53. g6 {[%clk 0:00:22.3]} 53... Kxb3 {[%clk 0:00:14.5]} 54.
g7 {[%clk 0:00:23.2]} 54... Kxa4 {[%clk 0:00:14.4]} 55. g8=Q {[%clk 0:00:24.5]}
55... Kb4 {[%clk 0:00:15.5]} 56. Qd5 {[%clk 0:00:22.7]} 56... Kc3 {[%clk
0:00:13.5]} 57. c5 {[%clk 0:00:21.6]} 1-0